[Event "World Junior Chess Championship U20 2022"]
[White "Dzagnidze, Nana"]
[Black "Gevorgyan, Maria"]
[WhiteFideId "13601903"]
[BlackFideId "13300270"]
[WhiteElo "2516"]
[BlackElo "2269"]
[Result "1-0"]
[Round "01"]
[TimeControl "90 min. + 30 min. +30 sec. per move"]
[Date "2022.10.12"]
[WhiteClock "0:13:58"]
[BlackClock "0:04:57"]

1. d4 {[%clk 1:30:58]}  Nf6 {[%clk 1:30:54]} 2. Nf3 {[%clk 1:31:21]}  c5 {[%clk 1:31:14]} 3. c4 {[%clk 1:31:29]}  cxd4 {[%clk 1:30:58]} 4. Nxd4 {[%clk 1:31:54]}  Nc6 {[%clk 1:31:24]} 5. Nc3 {[%clk 1:32:19]}  g6 {[%clk 1:31:48]} 6. g3 {[%clk 1:32:05]}  Bg7 {[%clk 1:32:11]} 7. Bg2 {[%clk 1:32:31]}  O-O {[%clk 1:32:35]} 8. O-O {[%clk 1:32:48]}  Qa5 {[%clk 1:32:59]} 9. Nb3 {[%clk 1:32:46]}  Qh5 {[%clk 1:33:22]} 10. Nd5 {[%clk 1:32:03]}  Nxd5 {[%clk 1:30:40]} 11. cxd5 {[%clk 1:31:52]}  Ne5 {[%clk 1:29:58]} 12. d6 {[%clk 1:31:41]}  exd6 {[%clk 1:29:06]} 13. Bf4 {[%clk 1:24:26]}  Re8 {[%clk 1:21:45]} 14. Rc1 {[%clk 1:13:34]}  g5 {[%clk 1:11:32]} 15. Bd2 {[%clk 0:55:36]}  d5 {[%clk 1:03:34]} 16. Bc3 {[%clk 0:53:33]}  d6 {[%clk 1:02:36]} 17. Qxd5 {[%clk 0:52:45]}  Re6 {[%clk 0:47:51]} 18. Bxe5 {[%clk 0:41:23]}  Rxe5 {[%clk 0:46:15]} 19. Qxd6 {[%clk 0:41:40]}  Bh3 {[%clk 0:46:07]} 20. Bxh3 {[%clk 0:35:48]}  Qxh3 {[%clk 0:46:30]} 21. e3 {[%clk 0:31:52]}  Rae8 {[%clk 0:37:03]} 22. Rfd1 {[%clk 0:28:15]}  Qh5 {[%clk 0:12:05]} 23. Rd2 {[%clk 0:24:50]}  f5 {[%clk 0:10:36]} 24. Rc5 {[%clk 0:18:53]}  Bf8 {[%clk 0:09:58]} 25. Qxe5 {[%clk 0:19:02]}  Rxe5 {[%clk 0:10:06]} 26. Rxe5 {[%clk 0:19:30]}  Qg6 {[%clk 0:07:54]} 27. Rd8 {[%clk 0:18:23]}  Kf7 {[%clk 0:07:09]} 28. Nd4 {[%clk 0:18:37]}  Bg7 {[%clk 0:04:53]} 29. Rd7+ {[%clk 0:18:41]}  Kg8 {[%clk 0:05:19]} 30. Nxf5 {[%clk 0:17:40]}  Bf8 {[%clk 0:04:57]} 31. Rg7+ {[%clk 0:13:58]} 1-0


[Site "http://www.chessbomb.com"]

[Event "World Junior Chess Championship U20 2022"]
[White "Galaviz Medina, Sion Radamantys"]
[Black "Esipenko, Andrey"]
[WhiteFideId "5123119"]
[BlackFideId "24175439"]
[WhiteElo "2345"]
[BlackElo "2668"]
[Result "0-1"]
[Round "01"]
[TimeControl "5400+30"]
[Date "2022.10.12"]
[WhiteClock "0:00:34"]
[BlackClock "0:02:09"]

1. d4 {[%clk 1:29:25]}  d5 {[%clk 1:30:20]} 2. c4 {[%clk 1:29:51]}  e6 {[%clk 1:30:37]} 3. Nc3 {[%clk 1:30:06]}  Nf6 {[%clk 1:30:48]} 4. cxd5 {[%clk 1:29:24]}  exd5 {[%clk 1:31:10]} 5. Bg5 {[%clk 1:29:49]}  c6 {[%clk 1:31:22]} 6. e3 {[%clk 1:29:32]}  Bd6 {[%clk 1:31:30]} 7. Bd3 {[%clk 1:29:38]}  O-O {[%clk 1:31:45]} 8. Nge2 {[%clk 1:22:18]}  Re8 {[%clk 1:31:53]} 9. Qc2 {[%clk 1:22:02]}  h6 {[%clk 1:32:15]} 10. Bf4 {[%clk 1:22:22]}  Bf8 {[%clk 1:22:29]} 11. h3 {[%clk 1:22:00]}  b6 {[%clk 1:22:44]} 12. g4 {[%clk 1:09:24]}  c5 {[%clk 1:11:29]} 13. Rd1 {[%clk 1:04:33]}  Nc6 {[%clk 1:00:07]} 14. Bb5 {[%clk 0:46:35]}  Bd7 {[%clk 0:51:13]} 15. g5 {[%clk 0:40:41]}  Nh5 {[%clk 0:41:12]} 16. Bxc6 {[%clk 0:28:17]}  Bxc6 {[%clk 0:40:31]} 17. Rg1 {[%clk 0:09:53]}  Nxf4 {[%clk 0:35:51]} 18. Nxf4 {[%clk 0:10:16]}  hxg5 {[%clk 0:28:36]} 19. Nfxd5 {[%clk 0:10:40]}  Bxd5 {[%clk 0:28:00]} 20. dxc5 {[%clk 0:11:02]}  Re5 {[%clk 0:28:15]} 21. Qd3 {[%clk 0:09:25]}  Bxc5 {[%clk 0:24:55]} 22. Nxd5 {[%clk 0:09:49]}  Qd6 {[%clk 0:25:11]} 23. Nc3 {[%clk 0:04:01]}  Qe6 {[%clk 0:23:31]} 24. Qd7 {[%clk 0:03:38]}  Qh6 {[%clk 0:23:03]} 25. Rg3 {[%clk 0:02:39]}  Bb4 {[%clk 0:20:49]} 26. Rd5 {[%clk 0:01:02]}  Qf6 {[%clk 0:20:30]} 27. Rxe5 {[%clk 0:00:37]}  Qxe5 {[%clk 0:20:46]} 28. Qd4 {[%clk 0:01:05]}  Qa5 {[%clk 0:17:39]} 29. Rg4 {[%clk 0:00:38]}  Bxc3+ {[%clk 0:16:37]} 30. Qxc3 {[%clk 0:01:06]}  Qxa2 {[%clk 0:16:03]} 31. Rxg5 {[%clk 0:01:16]}  g6 {[%clk 0:16:27]} 32. Rg4 {[%clk 0:01:06]}  Qa1+ {[%clk 0:12:12]} 33. Ke2 {[%clk 0:01:32]}  Rd8 {[%clk 0:11:00]} 34. Rd4 {[%clk 0:01:58]}  Rxd4 {[%clk 0:10:12]} 35. Qxd4 {[%clk 0:02:26]}  Qa6+ {[%clk 0:09:39]} 36. Kf3 {[%clk 0:02:14]}  Qc8 {[%clk 0:09:52]} 37. h4 {[%clk 0:02:25]}  Qc6+ {[%clk 0:09:57]} 38. Kg3 {[%clk 0:01:49]}  a5 {[%clk 0:10:25]} 39. e4 {[%clk 0:01:59]}  a4 {[%clk 0:10:23]} 40. e5 {[%clk 0:02:06]}  b5 {[%clk 0:10:40]} 41. f3 {[%clk 0:00:49]}  Qc7 {[%clk 0:07:18]} 42. f4 {[%clk 0:28:12]}  Qc2 {[%clk 0:36:10]} 43. Kf3 {[%clk 0:15:52]}  Qb3+ {[%clk 0:33:03]} 44. Kg4 {[%clk 0:16:03]}  b4 {[%clk 0:33:05]} 45. h5 {[%clk 0:11:34]}  gxh5+ {[%clk 0:32:50]} 46. Kxh5 {[%clk 0:11:29]}  a3 {[%clk 0:32:09]} 47. bxa3 {[%clk 0:10:17]}  bxa3 {[%clk 0:32:22]} 48. Kg4 {[%clk 0:09:11]}  Qb8 {[%clk 0:14:09]} 49. Qd5 {[%clk 0:09:06]}  Qe8 {[%clk 0:11:01]} 50. Kg3 {[%clk 0:03:48]}  Kg7 {[%clk 0:04:18]} 51. Qa5 {[%clk 0:04:04]}  Qe7 {[%clk 0:04:29]} 52. Qa6 {[%clk 0:04:15]}  Kh7 {[%clk 0:03:56]} 53. Qd3+ {[%clk 0:04:09]}  Kh8 {[%clk 0:04:25]} 54. Qa6 {[%clk 0:04:22]}  Kg7 {[%clk 0:04:36]} 55. Kg2 {[%clk 0:03:53]}  Kg8 {[%clk 0:04:16]} 56. Kg3 {[%clk 0:03:31]}  Qc5 {[%clk 0:04:35]} 57. Qe2 {[%clk 0:00:43]}  Qc8 {[%clk 0:03:53]} 58. Kh4 {[%clk 0:00:31]}  Qd8+ {[%clk 0:01:20]} 59. Kh5 {[%clk 0:00:36]}  Qa8 {[%clk 0:01:49]} 60. e6 {[%clk 0:00:34]}  Qd5+ {[%clk 0:02:09]} 0-1


[Site "http://www.chessbomb.com"]

[Event "World Junior Chess Championship U20 2022"]
[White "Nesterov, Arseniy"]
[Black "Abdurakhmonov, Mukhammadali"]
[WhiteFideId "24198455"]
[BlackFideId "14207346"]
[WhiteElo "2567"]
[BlackElo "2345"]
[Result "1/2-1/2"]
[Round "01"]
[TimeControl "5400+30"]
[Date "2022.10.12"]
[WhiteClock "0:18:10"]
[BlackClock "0:09:13"]

1. d4 {[%clk 1:30:57]}  Nf6 {[%clk 1:29:41]} 2. c4 {[%clk 1:31:18]}  e6 {[%clk 1:30:05]} 3. Nf3 {[%clk 1:31:36]}  d5 {[%clk 1:30:27]} 4. g3 {[%clk 1:29:39]}  dxc4 {[%clk 1:30:06]} 5. Bg2 {[%clk 1:29:47]}  a6 {[%clk 1:29:35]} 6. O-O {[%clk 1:29:16]}  Nc6 {[%clk 1:29:36]} 7. e3 {[%clk 1:25:41]}  Bd7 {[%clk 1:28:47]} 8. Qe2 {[%clk 1:16:32]}  Bd6 {[%clk 1:28:49]} 9. Qxc4 {[%clk 1:12:41]}  O-O {[%clk 1:28:21]} 10. Nc3 {[%clk 1:08:40]}  h6 {[%clk 1:28:28]} 11. e4 {[%clk 0:51:54]}  e5 {[%clk 1:28:07]} 12. dxe5 {[%clk 0:51:39]}  Nxe5 {[%clk 1:28:28]} 13. Nxe5 {[%clk 0:52:02]}  Bxe5 {[%clk 1:28:51]} 14. Be3 {[%clk 0:49:59]}  b5 {[%clk 1:12:59]} 15. Qc5 {[%clk 0:43:42]}  Bd6 {[%clk 0:59:51]} 16. Qd4 {[%clk 0:44:03]}  Qe7 {[%clk 1:00:05]} 17. f4 {[%clk 0:38:54]}  c5 {[%clk 0:55:00]} 18. Qd2 {[%clk 0:36:29]}  b4 {[%clk 0:52:20]} 19. e5 {[%clk 0:35:35]}  bxc3 {[%clk 0:51:27]} 20. exd6 {[%clk 0:35:37]}  Qe6 {[%clk 0:51:33]} 21. bxc3 {[%clk 0:34:45]}  Ne4 {[%clk 0:48:51]} 22. f5 {[%clk 0:22:14]}  Nxd2 {[%clk 0:37:34]} 23. fxe6 {[%clk 0:22:38]}  Nxf1 {[%clk 0:38:00]} 24. Rxf1 {[%clk 0:22:44]}  Bxe6 {[%clk 0:38:24]} 25. Bxa8 {[%clk 0:23:10]}  Rxa8 {[%clk 0:38:48]} 26. Bxc5 {[%clk 0:21:44]}  Rc8 {[%clk 0:31:26]} 27. Bb4 {[%clk 0:21:50]}  Bxa2 {[%clk 0:31:05]} 28. Ba5 {[%clk 0:20:59]}  Be6 {[%clk 0:31:06]} 29. Re1 {[%clk 0:20:26]}  Bh3 {[%clk 0:30:52]} 30. Re7 {[%clk 0:14:16]}  Rc5 {[%clk 0:23:05]} 31. Bb4 {[%clk 0:14:40]}  Rf5 {[%clk 0:23:31]} 32. Re8+ {[%clk 0:15:04]}  Kh7 {[%clk 0:23:56]} 33. Re1 {[%clk 0:15:31]}  a5 {[%clk 0:21:23]} 34. c4 {[%clk 0:12:22]}  Rf6 {[%clk 0:18:50]} 35. Bc5 {[%clk 0:10:14]}  a4 {[%clk 0:13:37]} 36. Rd1 {[%clk 0:09:57]}  Bd7 {[%clk 0:13:55]} 37. Rd3 {[%clk 0:09:17]}  g5 {[%clk 0:08:20]} 38. h3 {[%clk 0:07:18]}  h5 {[%clk 0:07:10]} 39. Bb4 {[%clk 0:05:54]}  g4 {[%clk 0:05:56]} 40. hxg4 {[%clk 0:06:13]}  hxg4 {[%clk 0:06:21]} 41. Re3 {[%clk 0:03:10]}  Re6 {[%clk 0:00:45]} 42. Rc3 {[%clk 0:27:25]}  Re4 {[%clk 0:26:31]} 43. Kf2 {[%clk 0:23:44]}  Kg6 {[%clk 0:25:34]} 44. Ba3 {[%clk 0:24:02]}  Re5 {[%clk 0:24:21]} 45. c5 {[%clk 0:23:07]}  Rf5+ {[%clk 0:19:21]} 46. Ke2 {[%clk 0:21:44]}  Bb5+ {[%clk 0:18:42]} 47. Ke3 {[%clk 0:18:45]}  Rf3+ {[%clk 0:18:13]} 48. Kd4 {[%clk 0:19:13]}  Kf5 {[%clk 0:17:44]} 49. Bc1 {[%clk 0:18:30]}  Rxc3 {[%clk 0:09:36]} 50. Kxc3 {[%clk 0:18:58]}  Ke6 {[%clk 0:10:00]} 51. Kd4 {[%clk 0:18:59]}  Bc6 {[%clk 0:10:00]} 52. Ba3 {[%clk 0:19:09]}  Bd7 {[%clk 0:08:30]} 53. Ke4 {[%clk 0:19:28]}  Bc6+ {[%clk 0:08:40]} 54. Kf4 {[%clk 0:19:45]}  f5 {[%clk 0:08:57]} 55. Bb4 {[%clk 0:17:45]}  Bb5 {[%clk 0:09:13]} 56. Ba3 {[%clk 0:18:10]} 1/2-1/2


[Site "http://www.chessbomb.com"]

[Event "World Junior Chess Championship U20 2022"]
[White "Utsab, Chatterjee"]
[Black "Svane, Frederik"]
[WhiteFideId "46609148"]
[BlackFideId "12923044"]
[WhiteElo "2345"]
[BlackElo "2566"]
[Result "0-1"]
[Round "01"]
[TimeControl "5400+30"]
[Date "2022.10.12"]
[WhiteClock "0:29:32"]
[BlackClock "0:30:52"]

1. e4 {[%clk 1:30:49]}  c5 {[%clk 1:30:52]} 2. Nf3 {[%clk 1:30:42]}  e6 {[%clk 1:31:16]} 3. d4 {[%clk 1:30:45]}  cxd4 {[%clk 1:31:40]} 4. Nxd4 {[%clk 1:31:09]}  Nc6 {[%clk 1:32:04]} 5. Nxc6 {[%clk 1:30:59]}  bxc6 {[%clk 1:32:28]} 6. Bd3 {[%clk 1:31:10]}  d5 {[%clk 1:32:51]} 7. O-O {[%clk 1:31:26]}  Nf6 {[%clk 1:33:17]} 8. Nc3 {[%clk 1:31:34]}  Be7 {[%clk 1:33:40]} 9. b3 {[%clk 1:31:03]}  O-O {[%clk 1:34:01]} 10. Qe2 {[%clk 1:31:04]}  Re8 {[%clk 1:34:23]} 11. Bb2 {[%clk 1:31:13]}  e5 {[%clk 1:30:08]} 12. Rad1 {[%clk 1:26:30]}  Bd7 {[%clk 1:29:39]} 13. exd5 {[%clk 1:09:07]}  cxd5 {[%clk 1:27:35]} 14. Nxd5 {[%clk 1:06:07]}  Nxd5 {[%clk 1:24:27]} 15. Bxh7+ {[%clk 1:06:04]}  Kxh7 {[%clk 1:23:12]} 16. Qd3+ {[%clk 1:04:47]}  Kg8 {[%clk 1:17:06]} 17. Qxd5 {[%clk 1:05:09]}  Be6 {[%clk 1:08:27]} 18. Qxe5 {[%clk 1:05:07]}  Bf6 {[%clk 1:08:22]} 19. Rxd8 {[%clk 1:01:40]}  Raxd8 {[%clk 1:08:13]} 20. Qa5 {[%clk 1:00:42]}  Bxb2 {[%clk 1:07:38]} 21. c4 {[%clk 1:00:07]}  Bd4 {[%clk 0:54:13]} 22. h3 {[%clk 0:54:30]}  Rd7 {[%clk 0:47:48]} 23. c5 {[%clk 0:45:16]}  Rd5 {[%clk 0:40:01]} 24. b4 {[%clk 0:41:16]}  Rf5 {[%clk 0:32:58]} 25. Qxa7 {[%clk 0:34:03]}  Rd8 {[%clk 0:27:04]} 26. Qa4 {[%clk 0:30:20]}  Rf4 {[%clk 0:13:52]} 27. c6 {[%clk 0:20:37]}  Bb6 {[%clk 0:10:11]} 28. Qb5 {[%clk 0:13:07]}  Bxf2+ {[%clk 0:10:10]} 29. Kh2 {[%clk 0:13:29]}  Rc8 {[%clk 0:05:11]} 30. Qd3 {[%clk 0:07:47]}  Bc4 {[%clk 0:04:27]} 31. Qd7 {[%clk 0:08:16]}  Be6 {[%clk 0:04:51]} 32. Qd1 {[%clk 0:07:15]}  Be3 {[%clk 0:04:10]} 33. Rxf4 {[%clk 0:03:57]}  Bxf4+ {[%clk 0:04:35]} 34. g3 {[%clk 0:04:21]}  Bc7 {[%clk 0:03:13]} 35. a4 {[%clk 0:04:46]}  Rd8 {[%clk 0:03:37]} 36. Qc2 {[%clk 0:05:11]}  Rd4 {[%clk 0:03:33]} 37. b5 {[%clk 0:04:39]}  Rc4 {[%clk 0:03:13]} 38. Qd1 {[%clk 0:01:25]}  Rb4 {[%clk 0:01:52]} 39. Qa1 {[%clk 0:00:34]}  Rb3 {[%clk 0:01:42]} 40. Qd4 {[%clk 0:00:37]}  Rxg3 {[%clk 0:00:47]} 41. Kh1 {[%clk 0:01:06]}  Rg5 {[%clk 0:29:15]} 42. a5 {[%clk 0:28:10]}  Bd5+ {[%clk 0:29:38]} 43. Qxd5 {[%clk 0:28:37]}  Rxd5 {[%clk 0:30:04]} 44. b6 {[%clk 0:29:04]}  Rxa5 {[%clk 0:30:28]} 45. bxc7 {[%clk 0:29:32]}  Ra8 {[%clk 0:30:52]} 0-1


[Site "http://www.chessbomb.com"]

[Event "World Junior Chess Championship U20 2022"]
[White "Mendonca, Leon Luke"]
[Black "Cappelletto, Joshuaede"]
[WhiteFideId "35028561"]
[BlackFideId "2824383"]
[WhiteElo "2558"]
[BlackElo "2337"]
[Result "1-0"]
[Round "01"]
[TimeControl "5400+30"]
[Date "2022.10.12"]
[WhiteClock "0:00:46"]
[BlackClock "0:15:12"]

1. d4 {[%clk 1:29:46]}  Nf6 {[%clk 1:30:44]} 2. Nf3 {[%clk 1:30:09]}  g6 {[%clk 1:31:08]} 3. Nc3 {[%clk 1:30:32]}  d5 {[%clk 1:30:17]} 4. Bf4 {[%clk 1:30:51]}  Bg7 {[%clk 1:30:41]} 5. e3 {[%clk 1:31:07]}  O-O {[%clk 1:30:03]} 6. Nb5 {[%clk 1:31:29]}  Na6 {[%clk 1:28:08]} 7. h3 {[%clk 1:31:18]}  Ne4 {[%clk 1:19:27]} 8. c3 {[%clk 1:31:07]}  c6 {[%clk 1:11:42]} 9. Na3 {[%clk 1:30:36]}  Nc7 {[%clk 1:10:25]} 10. Bd3 {[%clk 1:25:39]}  Nd6 {[%clk 1:08:35]} 11. O-O {[%clk 1:23:02]}  Bf5 {[%clk 1:06:56]} 12. c4 {[%clk 1:13:28]}  Bxd3 {[%clk 0:53:34]} 13. Qxd3 {[%clk 1:13:45]}  Ne6 {[%clk 0:51:04]} 14. Bh2 {[%clk 0:52:04]}  Nxc4 {[%clk 0:45:15]} 15. Nxc4 {[%clk 0:52:25]}  dxc4 {[%clk 0:45:41]} 16. Qxc4 {[%clk 0:52:50]}  Qd5 {[%clk 0:44:45]} 17. Rfc1 {[%clk 0:48:38]}  Rac8 {[%clk 0:36:02]} 18. b4 {[%clk 0:45:03]}  Rfd8 {[%clk 0:34:21]} 19. Rab1 {[%clk 0:37:21]}  h6 {[%clk 0:30:25]} 20. Ne1 {[%clk 0:33:29]}  Qf5 {[%clk 0:27:22]} 21. Qc2 {[%clk 0:21:11]}  Qd5 {[%clk 0:21:35]} 22. Nd3 {[%clk 0:17:58]}  Ra8 {[%clk 0:21:37]} 23. Qb3 {[%clk 0:11:54]}  Qe4 {[%clk 0:18:39]} 24. Ne5 {[%clk 0:03:22]}  Qd5 {[%clk 0:17:35]} 25. Nc4 {[%clk 0:03:29]}  Rac8 {[%clk 0:17:33]} 26. Na5 {[%clk 0:02:56]}  Qd7 {[%clk 0:16:58]} 27. Qa4 {[%clk 0:02:14]}  Re8 {[%clk 0:12:28]} 28. Nb3 {[%clk 0:01:59]}  Ra8 {[%clk 0:12:51]} 29. Rc2 {[%clk 0:01:56]}  Qd5 {[%clk 0:09:31]} 30. Na5 {[%clk 0:02:06]}  Qd7 {[%clk 0:08:09]} 31. Qb3 {[%clk 0:01:46]}  Rac8 {[%clk 0:07:37]} 32. Qa3 {[%clk 0:01:28]}  Ra8 {[%clk 0:05:12]} 33. Nb3 {[%clk 0:00:43]}  Qd5 {[%clk 0:05:12]} 34. Qa5 {[%clk 0:00:43]}  Red8 {[%clk 0:01:56]} 35. Rbc1 {[%clk 0:00:37]}  Qe4 {[%clk 0:01:53]} 36. Qa4 {[%clk 0:00:33]}  Rd5 {[%clk 0:01:26]} 37. Nd2 {[%clk 0:00:34]}  Qd3 {[%clk 0:01:42]} 38. Qb3 {[%clk 0:00:39]}  Qa6 {[%clk 0:00:54]} 39. Qc4 {[%clk 0:00:32]}  Qa4 {[%clk 0:00:55]} 40. Qb3 {[%clk 0:00:35]}  Qa6 {[%clk 0:00:57]} 41. Rc4 {[%clk 0:21:09]}  Qb6 {[%clk 0:28:38]} 42. Qa3 {[%clk 0:19:14]}  Rad8 {[%clk 0:18:38]} 43. R4c2 {[%clk 0:10:35]}  Bxd4 {[%clk 0:15:59]} 44. Nc4 {[%clk 0:01:31]}  Bc5 {[%clk 0:15:07]} 45. Bd6 {[%clk 0:00:46]}  Bxb4 {[%clk 0:15:12]} 46. Qxb4 {[%clk 0:00:46]} 1-0


[Site "http://www.chessbomb.com"]

[Event "World Junior Chess Championship U20 2022"]
[White "Raahul, V S"]
[Black "Murzin, Volodar"]
[WhiteFideId "25035525"]
[BlackFideId "44155573"]
[WhiteElo "2333"]
[BlackElo "2557"]
[Result "0-1"]
[Round "01"]
[TimeControl "5400+30"]
[Date "2022.10.12"]
[WhiteClock "0:04:33"]
[BlackClock "0:00:41"]

1. c4 {[%clk 1:30:30]}  Nf6 {[%clk 1:30:44]} 2. Nc3 {[%clk 1:30:51]}  g6 {[%clk 1:31:09]} 3. e4 {[%clk 1:31:06]}  d6 {[%clk 1:31:22]} 4. d4 {[%clk 1:31:27]}  Bg7 {[%clk 1:31:48]} 5. Be2 {[%clk 1:31:35]}  O-O {[%clk 1:32:07]} 6. Be3 {[%clk 1:31:54]}  Nbd7 {[%clk 1:32:04]} 7. Nf3 {[%clk 1:31:42]}  e5 {[%clk 1:31:39]} 8. O-O {[%clk 1:31:58]}  c6 {[%clk 1:26:29]} 9. d5 {[%clk 1:31:50]}  c5 {[%clk 1:22:36]} 10. Ne1 {[%clk 1:31:22]}  h5 {[%clk 1:18:49]} 11. Bg5 {[%clk 1:21:55]}  Re8 {[%clk 1:14:30]} 12. Nd3 {[%clk 1:15:02]}  Nf8 {[%clk 1:14:44]} 13. Qd2 {[%clk 1:11:43]}  N8h7 {[%clk 1:02:33]} 14. Bh6 {[%clk 1:09:43]}  Qe7 {[%clk 0:54:15]} 15. Bxg7 {[%clk 1:01:42]}  Kxg7 {[%clk 0:54:42]} 16. f4 {[%clk 0:46:38]}  exf4 {[%clk 0:53:11]} 17. Qxf4 {[%clk 0:34:16]}  Nxe4 {[%clk 0:46:42]} 18. Nxe4 {[%clk 0:32:51]}  Qxe4 {[%clk 0:47:07]} 19. Qxf7+ {[%clk 0:33:09]}  Kh6 {[%clk 0:42:42]} 20. Qf4+ {[%clk 0:24:13]}  Qxf4 {[%clk 0:33:42]} 21. Nxf4 {[%clk 0:24:31]}  g5 {[%clk 0:29:55]} 22. Ne6 {[%clk 0:24:55]}  Bxe6 {[%clk 0:30:20]} 23. dxe6 {[%clk 0:25:22]}  Rxe6 {[%clk 0:30:28]} 24. Bf3 {[%clk 0:25:23]}  Rb8 {[%clk 0:12:05]} 25. Bd5 {[%clk 0:19:43]}  Re7 {[%clk 0:12:00]} 26. Rae1 {[%clk 0:19:57]}  Rbe8 {[%clk 0:11:57]} 27. Rd1 {[%clk 0:19:23]}  Kg7 {[%clk 0:09:01]} 28. Rd3 {[%clk 0:15:42]}  Rf8 {[%clk 0:08:17]} 29. Rxf8 {[%clk 0:15:02]}  Nxf8 {[%clk 0:07:06]} 30. Rg3 {[%clk 0:14:22]}  Kg6 {[%clk 0:06:24]} 31. Kf2 {[%clk 0:12:37]}  b6 {[%clk 0:05:42]} 32. Rd3 {[%clk 0:11:29]}  Nd7 {[%clk 0:01:42]} 33. Bf3 {[%clk 0:08:37]}  Re6 {[%clk 0:01:24]} 34. Ra3 {[%clk 0:07:19]}  Ne5 {[%clk 0:01:18]} 35. Be4+ {[%clk 0:07:13]}  Kf6 {[%clk 0:01:44]} 36. Bd5 {[%clk 0:05:45]}  Ng4+ {[%clk 0:00:40]} 37. Kf3 {[%clk 0:06:11]}  Re1 {[%clk 0:00:51]} 38. h3 {[%clk 0:05:56]}  Ne5+ {[%clk 0:01:09]} 39. Kg3 {[%clk 0:06:09]}  h4+ {[%clk 0:00:52]} 40. Kh2 {[%clk 0:04:42]}  Kf5 {[%clk 0:00:35]} 41. g4+ {[%clk 0:04:33]}  Kf4 {[%clk 0:00:41]} 0-1


[Site "http://www.chessbomb.com"]

[Event "World Junior Chess Championship U20 2022"]
[White "Ivic, Velimir"]
[Black "Manish, Anto Cristiano F"]
[WhiteFideId "950122"]
[BlackFideId "25095927"]
[WhiteElo "2553"]
[BlackElo "2332"]
[Result "1-0"]
[Round "01"]
[TimeControl "5400+30"]
[Date "2022.10.12"]
[WhiteClock "0:25:47"]
[BlackClock "0:11:00"]

1. e4 {[%clk 1:30:52]}  c5 {[%clk 1:30:51]} 2. Nf3 {[%clk 1:31:14]}  d6 {[%clk 1:31:12]} 3. d4 {[%clk 1:31:39]}  cxd4 {[%clk 1:31:30]} 4. Nxd4 {[%clk 1:32:02]}  Nf6 {[%clk 1:31:53]} 5. Nc3 {[%clk 1:32:27]}  a6 {[%clk 1:32:05]} 6. Be3 {[%clk 1:32:33]}  e5 {[%clk 1:32:24]} 7. Nb3 {[%clk 1:32:58]}  Be7 {[%clk 1:32:30]} 8. f3 {[%clk 1:32:44]}  Be6 {[%clk 1:32:50]} 9. Qd2 {[%clk 1:33:02]}  h5 {[%clk 1:32:31]} 10. Nd5 {[%clk 1:32:20]}  Nxd5 {[%clk 1:32:15]} 11. exd5 {[%clk 1:32:44]}  Bf5 {[%clk 1:32:19]} 12. Be2 {[%clk 1:32:23]}  a5 {[%clk 1:32:23]} 13. a4 {[%clk 1:31:43]}  Nd7 {[%clk 1:32:09]} 14. O-O {[%clk 1:31:26]}  O-O {[%clk 1:31:23]} 15. f4 {[%clk 1:30:00]}  exf4 {[%clk 1:28:55]} 16. Bxf4 {[%clk 1:30:08]}  Rc8 {[%clk 1:27:12]} 17. c3 {[%clk 1:30:10]}  Nf6 {[%clk 1:26:24]} 18. Rae1 {[%clk 1:29:31]}  Bg6 {[%clk 1:20:27]} 19. Bf3 {[%clk 1:18:31]}  Re8 {[%clk 1:11:21]} 20. Nd4 {[%clk 1:17:17]}  Qb6 {[%clk 0:58:50]} 21. Kh1 {[%clk 1:04:40]}  Bf8 {[%clk 0:56:33]} 22. Nb5 {[%clk 1:02:45]}  Ne4 {[%clk 0:53:25]} 23. Bxe4 {[%clk 1:02:55]}  Bxe4 {[%clk 0:51:14]} 24. b3 {[%clk 1:00:19]}  Bg6 {[%clk 0:34:07]} 25. c4 {[%clk 0:57:08]}  f6 {[%clk 0:33:04]} 26. Be3 {[%clk 0:50:14]}  Qd8 {[%clk 0:32:50]} 27. Nd4 {[%clk 0:50:15]}  Bf7 {[%clk 0:32:20]} 28. h3 {[%clk 0:43:44]}  Re5 {[%clk 0:29:33]} 29. Bf4 {[%clk 0:42:50]}  Qb6 {[%clk 0:29:14]} 30. Qd3 {[%clk 0:34:22]}  Rxe1 {[%clk 0:24:55]} 31. Rxe1 {[%clk 0:34:37]}  Re8 {[%clk 0:23:23]} 32. Ne6 {[%clk 0:32:53]}  Qf2 {[%clk 0:20:07]} 33. Bd2 {[%clk 0:30:48]}  b6 {[%clk 0:17:44]} 34. Re3 {[%clk 0:28:01]}  Bxe6 {[%clk 0:15:23]} 35. dxe6 {[%clk 0:26:45]}  Qf4 {[%clk 0:11:00]} 36. e7 {[%clk 0:25:47]} 1-0


[Site "http://www.chessbomb.com"]

[Event "World Junior Chess Championship U20 2022"]
[White "Lux, Hugo de Melo"]
[Black "Muradli, Mahammad"]
[WhiteFideId "2138298"]
[BlackFideId "13409301"]
[WhiteElo "2309"]
[BlackElo "2550"]
[Result "1-0"]
[Round "01"]
[TimeControl "5400+30"]
[Date "2022.10.12"]
[WhiteClock "0:02:34"]
[BlackClock "0:47:57"]

1. e4 {[%clk 1:30:56]}  c5 {[%clk 1:29:39]} 2. Nc3 {[%clk 1:31:03]}  Nc6 {[%clk 1:30:01]} 3. f4 {[%clk 1:31:16]}  g6 {[%clk 1:30:21]} 4. Nf3 {[%clk 1:30:40]}  Bg7 {[%clk 1:30:42]} 5. Bc4 {[%clk 1:29:36]}  e6 {[%clk 1:30:58]} 6. O-O {[%clk 1:17:24]}  Nge7 {[%clk 1:31:21]} 7. e5 {[%clk 1:06:58]}  d6 {[%clk 1:27:15]} 8. Ne4 {[%clk 0:39:02]}  dxe5 {[%clk 1:22:42]} 9. fxe5 {[%clk 0:39:23]}  Nxe5 {[%clk 1:22:43]} 10. Bb5+ {[%clk 0:29:56]}  N5c6 {[%clk 1:22:19]} 11. d4 {[%clk 0:28:50]}  cxd4 {[%clk 1:19:10]} 12. Bg5 {[%clk 0:19:11]}  O-O {[%clk 1:03:33]} 13. Nf6+ {[%clk 0:15:08]}  Kh8 {[%clk 1:03:51]} 14. Bxc6 {[%clk 0:14:42]}  bxc6 {[%clk 1:03:29]} 15. Ne5 {[%clk 0:09:18]}  Nf5 {[%clk 0:58:10]} 16. Qf3 {[%clk 0:02:54]}  h6 {[%clk 0:54:38]} 17. g4 {[%clk 0:03:19]}  hxg5 {[%clk 0:51:11]} 18. gxf5 {[%clk 0:03:48]}  Bxf6 {[%clk 0:50:57]} 19. fxg6 {[%clk 0:03:21]}  Kg7 {[%clk 0:49:43]} 20. Nxf7 {[%clk 0:02:11]}  Qe7 {[%clk 0:48:19]} 21. Qh5 {[%clk 0:01:53]}  Rxf7 {[%clk 0:46:57]} 22. Qh7+ {[%clk 0:02:06]}  Kf8 {[%clk 0:47:26]} 23. gxf7 {[%clk 0:01:55]}  Qxf7 {[%clk 0:47:31]} 24. Rxf6 {[%clk 0:02:07]}  Qxf6 {[%clk 0:47:57]} 25. Rf1 {[%clk 0:02:34]} 1-0


[Site "http://www.chessbomb.com"]